Cogmind - Beta 13 @@@ ROGUE MODE // 2024.04.05 @ 10:11:46 Player: Devilhunter10 Result: Destroyed by 62-UPI(R) with Subdweller Laser Performance ------------- Evolutions (0) 0 Regions Visited (3) 600 Robots Destroyed (17) 85 Value Destroyed (478) 478 Prototype IDs (0) 0 Alien Tech Used (0) 0 Bonus (0) 0 TOTAL SCORE: 1163 Bonus ------- None Cogmind --------- Core Integrity 0/250 Matter 272/300 Energy 246/250 System Corruption 0% Temperature Cool (6) Movement Walking (260) Ox2 Location -10/Subcaves Parts ------- > --- POWER (1) -------- Ion Engine > --- PROPULSION (2) --- Aluminum Leg > --- UTILITY (2) ------ Medium Storage Unit Subdweller Optics > --- WEAPON (2) ------- Subdweller Laser Light Cannon > --- INVENTORY (10) --- Subdweller Power Source Subdweller Power Source Subdweller Monowheel Subdweller Monowheel Large Matter Pod (150) Core Shielding Assault Rifle Mining Laser Multitool Shrapnel Trap Peak State ------------ > --- POWER ------------ Ion Engine > --- PROPULSION ------- Aluminum Leg > --- UTILITY ---------- Medium Storage Unit Subdweller Optics > --- WEAPON ----------- Subdweller Laser Light Cannon > --- INVENTORY -------- Subdweller Power Source Subdweller Power Source Subdweller Monowheel Large Matter Pod Core Shielding Assault Rifle Mining Laser Shrapnel Trap [Rating: 9] Favorites ----------- Power Ion Engine Engine Ion Engine Propulsion Aluminum Leg Leg Aluminum Leg Utility Medium Storage Unit Device Heat Sink Storage Medium Storage Unit Weapon Assault Rifle Energy Gun Medium Laser Ballistic Gun Assault Rifle Ballistic Cannon Light Cannon Build | -11 -10 -10 -10 ------- Run | Yrd Mat Min Sub Slots Evolved . | . . . . Power . | . . . . Propulsion . | . . . . Utility . | . . . . Weapon . | . . . . Parts Attached 23 | 6 8 3 6 Power 4 | 1 1 1 1 Engine 4 | 1 1 1 1 Core . | . . . . Reactor . | . . . . Propulsion 7 | 2 2 2 1 Treads . | . . . . Leg 7 | 2 2 2 1 Wheel . | . . . . Hover . | . . . . Flight . | . . . . Utility 4 | 1 2 . 1 Device 2 | . 1 . 1 Storage 2 | 1 1 . . Processor . | . . . . Hackware . | . . . . Protection . | . . . . Artifact . | . . . . Weapon 8 | 2 3 . 3 Energy Gun 3 | 1 1 . 1 Energy Cannon . | . . . . Ballistic Gun 4 | 1 2 . 1 Ballistic Cannon 1 | . . . 1 Launcher . | . . . . Special Weapon . | . . . . Impact Weapon . | . . . . Slashing Weapon . | . . . . Piercing Weapon . | . . . . Special Melee Weapon . | . . . . Unidentified Prototypes . | . . . . Parts Lost 6 | . . 1 5 Power 1 | . . . 1 Propulsion 3 | . . 1 2 Utility . | . . . . Weapon 2 | . . . 2 Highest Loss Streak 4 | . . 1 4 To Critical Strikes . | . . . . Average Slot Usage (%) 94 | . 90 99 90 Engine 13 | . 14 14 13 Leg 25 | . 28 27 20 Device 11 | . 5 14 14 Storage 14 | . 14 14 14 Energy Gun 4 | . 11 . 3 Ballistic Gun 21 | . 15 28 15 Ballistic Cannon 2 | . . . 8 Naked Turns . | . . . . Heaviest Build 24 | 13 20 20 24 Greatest Support 20 | 20 20 20 20 Greatest Overweight (x) 2 | 2 . 1 2 Average Overweight (x) . | . . . . Largest Inventory Capacity 10 | 8 10 10 10 Average Capacity 9 | 7 9 10 10 Most Carried 10 | 1 10 9 10 Average Carried 7 | . 5 8 7 Final Capacity 10 | 8 10 10 10 Final Carried 10 | 1 8 7 10 Class Distribution -------------------- 100% | Mutant Dominant Class ---------------- Mutant | -10/Materials Mutant | -10/Mines Mutant | -10/Subcaves Resources | -11 -10 -10 -10 ----------- Run | Yrd Mat Min Sub Matter Collected 927 | 214 283 184 246 Remotely . | . . . . Salvage Created 558 | . 330 149 79 Parts 29 | . 18 3 8 Haulers Intercepted . | . . . . Recyclers Shooed . | . . . . Parts Field Recycled . | . . . . Retrieved Matter . | . . . . Parts Self-Destructed 12 | . . . 12 Prevented . | . . . . Kills | -11 -10 -10 -10 ------- Run | Yrd Mat Min Sub Combat Hostiles Destroyed 17 | . 9 5 3 Guns 16 | . 9 5 2 Cannons 1 | . . . 1 Classes Destroyed 3 | . 2 . 1 Swarmer 6 | . 3 3 . Grunt 8 | . 6 2 . Subdweller 3 | . . . 3 Best Kill Streak 3 | . 3 3 1 Combat Bots Only 3 | . 3 3 1 Max Kills in Single Turn 2 | . 1 2 1 Gunslinging 1 | . . 1 . Exploded . | . . . . Melee . | . . . . Uniques/NPCs Destroyed . | . . . . Combat | -11 -10 -10 -10 -------- Run | Yrd Mat Min Sub Hostile Shots Fired 146 | . 64 36 46 Missed 38 | . 17 8 13 Damage Taken 1446 | . 478 282 686 Core 266 | . 76 61 129 Absorbed by Shields . | . . . . Regen/Repaired (Parts) 77 | . 77 . . Core Remaining (%) 100 | 100 . . . Volleys Fired 80 | . 32 18 30 Largest 2 | . 2 2 2 Hottest 95 | . 70 40 95 Shots Fired 152 | . 64 36 52 Gun 122 | . 64 36 22 Cannon 30 | . . . 30 Launcher . | . . . . Special . | . . . . Kinetic 125 | . 42 36 47 Thermal 27 | . 22 . 5 Explosive . | . . . . Electromagnetic . | . . . . Robot Hit Streak 7 | . 4 5 7 Robot Miss Streak 4 | . 4 3 3 Penetration Max . | . . . . Secondary Targets 4 | . 2 2 . Max Gunslinging Chain 1 | . 1 1 . Shots Hit Robots 91 | . 34 20 37 Core Hits 30 | . 16 8 6 Critical Kills . | . . . . Critical Parts Destroyed . | . . . . Critical Strikes 1 | . 1 . . Burn 1 | . 1 . . Melee Attacks . | . . . . Impact . | . . . . Slashing . | . . . . Piercing . | . . . . Sneak Attacks . | . . . . Combat Hostiles . | . . . . Follow-up Attacks . | . . . . Damage Inflicted 1333 | . 446 264 623 Guns 970 | . 446 264 260 Cannons 363 | . . . 363 Explosions . | . . . . Melee . | . . . . Ramming . | . . . . Kinetic 1069 | . 283 264 522 Thermal 264 | . 163 . 101 Explosive . | . . . . Electromagnetic . | . . . . Impact . | . . . . Slashing . | . . . . Piercing . | . . . . Highest Corruption . | . . . . Average Corruption . | . . . . Corruption Purged . | . . . . Corruption Blocked . | . . . . Overload Shots . | . . . . Overflow Damage . | . . . . Projectiles . | . . . . Explosions . | . . . . Melee . | . . . . Knockbacks 6 | . . . 6 Impact . | . . . . Kinetic 6 | . . . 6 Secondary . | . . . . Self-Inflicted Damage . | . . . . Shots . | . . . . Rammed . | . . . . Targets Rammed . | . . . . Kicked . | . . . . Crushed . | . . . . Highest Temperature 184 | . 184 . . Average Temperature 87 | . 87 . . Received Heat Transfer 507 | . 204 105 198 Siege Activations . | . . . . Robots Corrupted . | . . . . Combat Hostiles . | . . . . Parts Fried . | . . . . Impact Corruptions . | . . . . Robots Melted . | . . . . Combat Hostiles . | . . . . Parts Melted 1 | . 1 . . Heat Transferred 669 | . 544 . 125 Parts Sabotaged . | . . . . Parts Stolen . | . . . . Parts Stripped . | . . . . Power Chain Reactions . | . . . . Alert | -11 -10 -10 -10 ------- Run | Yrd Mat Min Sub Peak Influence 221 | . 221 103 . Initial 33 | . . 33 . Average 77 | . 99 67 . Maximum Alert Level 1 | . 1 . . Low Security (%) 92 | 100 79 100 . Level 1 7 | . 20 . . Level 2 . | . . . . Level 3 . | . . . . Level 4 . | . . . . Level 5 . | . . . . High Security . | . . . . Max Security . | . . . . Squads Dispatched 2 | . 2 . . Investigation 1 | . 1 . . Extermination . | . . . . Reinforcement 1 | . 1 . . Assault . | . . . . Garrison . | . . . . Intercept . | . . . . Searches Triggered . | . . . . Construction Impeded . | . . . . Haulers Reinforced . | . . . . Active Scanning Responses . | . . . . Cargo Convoy Interrupts . | . . . . Stealth | -11 -10 -10 -10 --------- Run | Yrd Mat Min Sub Distress Signals . | . . . . Communications Jammed . | . . . . Distress Signals . | . . . . Times Spotted 27 | . 15 6 6 Peak Tracking Total 4 | . 4 3 3 Tactical Retreats 1 | . . 1 . Traps | -11 -10 -10 -10 ------- Run | Yrd Mat Min Sub Traps Triggered 1 | . 1 . . Indirectly . | . . . . Trap Hack Attempts . | . . . . Triggered . | . . . . Disarmed . | . . . . Reprogrammed . | . . . . Reused . | . . . . Traps Extracted . | . . . . Installed . | . . . . Triggered . | . . . . Most Traps Carried 1 | . . . 1 Machines | -11 -10 -10 -10 ---------- Run | Yrd Mat Min Sub Machines Disabled . | . . . . Max in Single Turn . | . . . . Machines Repaired . | . . . . Machines Dismantled . | . . . . Machines Sabotaged . | . . . . Overloaded Fab Kills . | . . . . Hacking | -11 -10 -10 -10 --------- Run | Yrd Mat Min Sub Machines Accessed 2 | . 2 . . Terminals 1 | . 1 . . Fabricators . | . . . . Repair Stations 1 | . 1 . . Recycling Units . | . . . . Scanalyzers . | . . . . Garrison Access . | . . . . Total Hacks 5 | . 5 . . Successful 3 | . 3 . . Failed 2 | . 2 . . Catastrophic . | . . . . Database Lockouts . | . . . . Manual . | . . . . Terminals 2 | . 2 . . Fabricators . | . . . . Repair Stations 3 | . 3 . . Recycling Units . | . . . . Scanalyzers . | . . . . Garrison Access . | . . . . Terminal Hacks 1 | . 1 . . Zone Layout 1 | . 1 . . Fabricator Hacks . | . . . . Repair Station Hacks 2 | . 2 . . Scan Component 1 | . 1 . . Repair 1 | . 1 . . Recycling Unit Hacks . | . . . . Scanalyzer . | . . . . Garrison Access Hacks . | . . . . Unauthorized Hacks . | . . . . Terminals . | . . . . Fabricators . | . . . . Repair Stations . | . . . . Recycling Units . | . . . . Scanalyzers . | . . . . Garrison Access . | . . . . Data Cores Recovered . | . . . . Used . | . . . . Hacking Detections 1 | . 1 . . Full Trace Events . | . . . . Feedback Events . | . . . . Feedback Blocked . | . . . . Robot Schematics Acquired . | . . . . Robots Built . | . . . . Authchips . | . . . . Time . | . . . . Total Robot Build Rating . | . . . . Part Schematics Acquired . | . . . . Parts Built . | . . . . Authchips . | . . . . Time . | . . . . Total Part Build Rating . | . . . . Parts Repaired 1 | . 1 . . Time 26 | . 26 . . Parts Recycled . | . . . . Recycled Matter . | . . . . Retrieved Matter . | . . . . Retrieved Components . | . . . . Parts Scanalyzed . | . . . . Part Schematics Acquired . | . . . . Parts Damaged . | . . . . Bothacking | -11 -10 -10 -10 ------------ Run | Yrd Mat Min Sub Used RIF Installer . | . . . . Robots Hacked . | . . . . Non-combat . | . . . . Combat . | . . . . Robot Hacks Applied . | . . . . Relay Couplers Released . | . . . . Fabnet Peak Effective % . | . . . . Robots Rewired . | . . . . Allies Hacked . | . . . . Hacks Repelled . | . . . . Allies | -11 -10 -10 -10 -------- Run | Yrd Mat Min Sub Total Allies 1 | . . 1 . Largest Group 1 | . . 1 . Highest-Rated Group 31 | . . 31 . Highest-Rated Ally 31 | . . 31 . Total Orders . | . . . . Ally Attacks . | . . . . Total Damage . | . . . . Kills . | . . . . Allies Corrupted . | . . . . Allies Melted . | . . . . Intel | -11 -10 -10 -10 ------- Run | Yrd Mat Min Sub Robot Analysis Total . | . . . . Derelict Logs Recovered 3 | . . 2 1 Drone Launches . | . . . . Drone Recoveries . | . . . . Exploration | -11 -10 -10 -10 ------------- Run | Yrd Mat Min Sub Turns Passed 1910 | 53 521 792 544 Spaces Moved 1224 | 35 302 606 281 Core 9 | 9 . . . Treads . | . . . . Legs 1215 | 26 302 606 281 Wheels . | . . . . Hover . | . . . . Flight . | . . . . Fastest Speed 50 | 50 120 120 120 Average Speed 129 | 122 120 120 159 Slowest Speed 260 | 190 120 190 260 Overloaded Moves . | . . . . Propulsion Burnouts . | . . . . Robots Hopped . | . . . . Cave-ins Triggered . | . . . . Exploration Rate (%) 45 | 3 58 96 26 Regions Visited 3 Branch Regions 2 Pre-discovered Areas . | . . . . Known Exits Taken . | . . . . Unknown Exits Taken 3 | 1 1 1 . Scrap Searched 3 | . . 1 2 Spaces Dug . | . . . . Terrain Destroyed . | . . . . Melee . | . . . . Projectile . | . . . . AOE . | . . . . Terrain Rammed . | . . . . Walls Destroyed . | . . . . Machines Disabled . | . . . . Actions | -11 -10 -10 -10 --------- Run | Yrd Mat Min Sub Total 1398 | 42 396 634 326 Wait 40 | 1 35 4 . Move 1221 | 34 301 605 281 Hop . | . . . . Pick Up 24 | 1 13 2 8 Fast Attach 9 | 6 3 . . Attach 7 | . 1 1 5 Detach . | . . . . Swap 7 | . 4 2 1 Drop 10 | . 7 2 1 Fire 80 | . 32 18 30 Melee . | . . . . Ram . | . . . . Kick . | . . . . Crush . | . . . . Escape Stasis . | . . . . Rewire . | . . . . Trap . | . . . . Miscellaneous . | . . . . Route ------- -11/Scrapyard -10/Materials (discovered 2 exits: [*Mat] / [*Min]) -10/Mines (discovered 3 exits: [*Mat x2] / [*Sub]) -10/Subcaves History --------- Turn | Location | Event 21 | -11/Scrapyard | Discovered new exit (range 15) 54 | -11/Scrapyard | Entered Materials 167 | -10/Materials | Discovered new exit (range 11) 283 | -10/Materials | Discovered new exit (range 16) 315 | -10/Materials | Build established: Mutant 429 | -10/Materials | Repaired Assault Rifle 575 | -10/Materials | Entered Mines 602 | -10/Mines | Learned location of 1 exit from Materials 644 | -10/Mines | Received a Mining Laser from a helpful Derelict 765 | -10/Mines | Discovered new exit (range 7) 1085 | -10/Mines | Learned Materials security intel 1092 | -10/Mines | Discovered new exit (range 6) 1186 | -10/Mines | Core integrity fell below 50% 1361 | -10/Mines | Discovered new exit (range 6) 1367 | -10/Mines | Entered Subcaves 1442 | -10/Subcaves | Learned Materials emergency access door positions 1643 | -10/Subcaves | Core integrity fell below 20% 1690 | -10/Subcaves | Lost 4 parts (1p2n1w) 1911 | -10/Subcaves | Destroyed by 62-UPI(R) with Subdweller Laser Last Messages --------------- 01766_ G5-EBD(R) destroyed. 01774_ Acquired 14 matter. 01783_ Acquired Sub. Power Source. 01784_ Acquired 28 matter. 01791_ Subatomizers dissect the Sub. Power Source. 01794_ Acquired Sub. Optics. 01795_ Acquired 31 matter. 01797_ Dropped Heat Sink. 01798_ Acquired 10 matter. 01799_ Acquired 4 matter. 01802_ Acquired Sub. Power Source. 01806_ Subatomizers dissect the Sub. Monowheel. 01808_ Acquired Sub. Monowheel. 01882_ Searching scrap... 01882_ Found Multitool. 01882_ Found 18 Matter. 01883_ Acquired 6 matter. 01887_ Acquired Multitool. 0P-5ED(R) emerges from concealment. Map ----- +----------------------------------------------------+ | ###???????######?????????????????????????????? | | ?????## #?????????????????????????????? | | ?????# ????????????????????????????? | | ?????# "" #????????????????????????????? | | ?????# "" #????????????????????????????? | | #????## ""#??###???????????????????????? | | ##?### " "#?? #???????????????????????? | | % ##? """ ### #????????????????????????? | | #?# """"" "" #?????????????????????????? | | ### """ "" # ????????????????????????? | | % " """" ????""""??????????????? | | & ! """ ????""""??????????????? | | && ## """##????????"""???????????????? | | &! & ### "" #?????????" ???????????????? | | """"### ##???????? ????????????????? | | " " ## #??????## ????????????????? | | # " ## ##?????## ?????????????????? | | #""##### #####??# ?????????????????? | | ## ##?## " #??# #?????????????????? | | ##??# ###?? #?????????????????? | | #???# ##????# ##????????????????? | | #???## ##???## #????????????????? | | #????## #???# ##????????????????? | | ##?????## ##### % ##???????????????? | | ##?????### #???????????????? | | ## # ### @ ##???????????????? | | #" " ##????????????????? | | #"""" ## #?????????????????? | | ?#" ### # ## ##### #?????????????????? | | ?#????####?## ??# #????????????????? | | ????????????# #? #???????????????? | | ???????????# ### #??????????????? | | ??????????# #?## ####??????????????? | | ??????????# ##??# ####?????????????????? | | ??????????# ###???#RR#????????????????????? | | ??????????# ##????? #????????????????????? | | ??????????# ##???????R% ????????????????????? | | ??????????##???????? ????????????????????? | | ????????????????????% ????????????????????? | | ??????????????????? ????????????????????? | | ??????????????????? ???????????????????? | | ?????????????????? ???????????????????? | | ??????????????????? ???????????????????? | | ?????????????????? #???????????????????? | | ???????????????????? ## #???????????????????? | | ???????????????????????##????????????????????? | | ?????????????????????????????????????????????? | | ?????????????????????????????????????????????? | | ?????????????????????????????????????????????? | | ?????????????????????????????????????????????? | +----------------------------------------------------+ Best States ------------- Heat Dissipation 35 Energy Generation 10 Energy Capacity 250 Matter Stores 300 Matter Capacity 300 Sight Range 21 Terrain Scan Density 10 Evasion (%) 55 Item Schematics ----------------- None Robot Schematics ------------------ None Fabricated ------------ Nothing Alien Tech Used ----------------- None Achievements -------------- None Challenges ------------ None Game ------ Seed ReactiveAblativeNanovents Manual? 0 Play Time 00:15:36 Cumulative 11.0 hours Start 2024.04.05 @ 09:56:47 End 2024.04.05 @ 10:11:46 Sessions 1 Manual Loads 0 Difficulty Rogue Special Mode None Game No. 23 Rogue 23 Adventurer 0 Explorer 0 Win Type - Total 0 Types 0/0/0/0/0/0/0/0/0 Lore% 17 Gallery% 19 Achievement% 17 Wizard Run 0 Options --------- Layout 1 ASCII 0 Keyboard 0 Movement Numpad Keybinds 0 Fullscreen 1 Font 24/Terminus Map View 50x35 Zoom Use 0% Tactical HUD 1 Map Filters NONE Filters NONE Steam 1 RUN: 2cf64b13-2319-4ad8-9ade-90548fcef806